bitfinex/quotes_BTCUSD_20241111
["timestamp","ask_amount","ask_price","bid_price","bid_amount"]
[1731348031238,0.130057,84601.0,84592.0,0.11994075]
[1731348031239,0.05285567,84595.0,84592.0,0.11994075]
[1731348031458,0.05285567,84594.0,84591.0,0.03763854]
[1731348031657,0.005,84608.0,84591.0,0.03763854]
[1731348031658,0.05285974,84593.0,84591.0,0.03763854]
[1731348031871,0.0777,84597.0,84577.0,0.17736262]
[1731348031872,0.05285974,84592.0,84577.0,0.17736262]
[1731348032072,0.0777,84597.0,84587.0,0.17736262]
[1731348032073,0.13007929,84591.0,84587.0,0.17736262]
[1731348032284,0.0777,84597.0,84577.0,0.17736262]
[1731348032285,0.08809958,84589.0,84588.0,0.11994075]
[1731348032495,0.13007929,84589.0,84588.0,0.11994075]
[1731348032691,0.13007929,84589.0,84577.0,0.17736262]
[1731348032692,0.13007929,84589.0,84577.0,0.0373011]
[1731348032904,0.13007929,84588.0,84585.0,0.17736262]
[1731348033125,0.13007929,84587.0,84585.0,0.17736262]
[1731348033324,0.13007929,84586.0,84585.0,0.17736262]
[1731348033914,0.13007929,84586.0,84577.0,0.11994075]
[1731348034118,0.08813959,84581.0,84577.0,0.11994075]
[1731348034445,0.08814088,84578.0,84577.0,0.11994075]
[1731348034650,0.08814088,84578.0,84567.0,0.17736262]
[1731348034900,0.12172541,84587.0,84577.0,0.21444596]
[1731348035103,0.12172541,84587.0,84568.0,0.11994075]
[1731348035104,0.24687845,84586.0,84568.0,0.11994075]
[1731348035295,0.14115896,84585.0,84577.0,0.17736262]
[1731348035514,0.13015304,84584.0,84577.0,0.17736262]
[1731348035717,0.14115896,84583.0,84577.0,0.17736262]
[1731348035933,0.13015304,84582.0,84577.0,0.17736262]
[1731348036162,0.12019004,84581.0,84577.0,0.17736262]
[1731348036376,0.0881378,84580.0,84578.0,0.01773626]
[1731348036614,0.005,84587.0,84578.0,0.01773626]
[1731348036825,0.005,84587.0,84579.0,0.01950989]
[1731348037046,0.01100592,84591.0,84586.0,0.17736262]
[1731348037265,0.0827,84597.0,84580.0,0.00236439]
[1731348037266,0.01100592,84593.0,84580.0,0.00236439]
[1731348037480,0.01100592,84592.0,84581.0,0.01992369]
[1731348037709,0.01100592,84592.0,84582.0,0.00236426]
[1731348037710,0.01600592,84592.0,84582.0,0.00236426]
[1731348037923,0.005,84592.0,84582.0,0.00236426]
[1731348038350,0.01600592,84591.0,84587.0,0.17736262]
[1731348038558,0.01100592,84590.0,84587.0,0.17736262]
[1731348038768,0.1057664,84588.0,84587.0,0.17736262]
[1731348038984,0.01100592,84589.0,84587.0,0.17736262]
[1731348039612,0.01100592,84588.0,84587.0,0.17736262]
[1731348039870,0.11677232,84588.0,84582.0,0.00236426]
[1731348040077,0.10577542,84586.0,84584.0,0.0332137]
[1731348040299,0.10577542,84589.0,84586.0,0.17736262]
[1731348040499,0.005,84591.0,84586.0,0.19895286]
[1731348040500,0.01102096,84588.0,84586.0,0.19895286]
[1731348040698,0.01102096,84587.0,84586.0,0.19895286]
[1731348041167,0.01102096,84587.0,84586.0,0.31889361]
[1731348041378,0.07050578,84589.0,84586.0,0.31889361]
[1731348041596,0.07050578,84588.0,84587.0,0.15183011]
[1731348041800,0.07050578,84589.0,84587.0,0.1541943]
[1731348042016,0.07050578,84591.0,84588.0,0.023]
[1731348042239,0.07050578,84590.0,84589.0,0.14294075]
[1731348042454,0.0016968,84596.0,84590.0,0.1478]
[1731348042455,0.07050578,84591.0,84590.0,0.1478]
[1731348042677,0.0016968,84596.0,84590.0,0.26774075]
[1731348042678,0.07050578,84592.0,84590.0,0.26774075]
[1731348042891,0.07050578,84594.0,84592.0,0.023]
[1731348043093,0.05457058,84596.0,84593.0,0.14294075]
[1731348043299,0.05287378,84595.0,84594.0,0.023]
[1731348043524,0.0528707,84595.0,84594.0,0.14294075]
[1731348043783,0.05286736,84595.0,84594.0,0.14294075]
[1731348044005,0.05286748,84595.0,84594.0,0.14294075]
[1731348044234,0.01102449,84599.0,84586.0,0.21594849]
[1731348044443,0.002,84617.0,84586.0,0.03858587]
[1731348044444,0.005,84595.0,84586.0,0.03858587]
[1731348044653,0.005,84595.0,84587.0,0.17736262]
[1731348044883,0.11679577,84594.0,84587.0,0.17736262]
[1731348045102,0.10577128,84592.0,84587.0,0.17736262]
[1731348045305,0.10577128,84592.0,84577.0,0.17821102]
[1731348045306,0.11679577,84591.0,84577.0,0.21634178]
[1731348045641,0.005,84593.0,84586.0,0.17736262]
[1731348045642,0.01102449,84590.0,84586.0,0.17736262]
[1731348045858,0.01102449,84589.0,84586.0,0.17736262]
[1731348046077,0.01102449,84588.0,84586.0,0.17736262]
[1731348046280,0.11076388,84593.0,84586.0,0.17736262]
[1731348046281,0.01102449,84587.0,84586.0,0.17736262]
[1731348046427,0.01102449,84587.0,84578.0,0.14157493]
[1731348046631,0.01102449,84586.0,84578.0,0.14157493]
[1731348046832,0.01102449,84585.0,84578.0,0.11994075]
[1731348047013,0.01102449,84584.0,84578.0,0.11994075]
[1731348047201,0.01102449,84583.0,84578.0,0.11994075]
[1731348047395,0.01102449,84582.0,84578.0,0.11994075]
[1731348047614,0.01102449,84581.0,84578.0,0.11994075]
[1731348047809,0.01102449,84580.0,84578.0,0.11994075]
[1731348048041,0.01102449,84579.0,84578.0,0.11994075]
[1731348049213,0.01102449,84587.0,84578.0,0.17893332]
[1731348049422,0.01102449,84586.0,84578.0,0.17893332]
[1731348049551,0.11076388,84594.0,84578.0,0.17893332]
[1731348049552,0.01102449,84593.0,84578.0,0.17893332]
[1731348049749,0.01102449,84592.0,84579.0,0.03952751]
[1731348049957,0.01102449,84591.0,84580.0,0.11994075]
[1731348050195,0.01102449,84590.0,84580.0,0.11994075]
[1731348050395,0.01102449,84589.0,84580.0,0.11994075]
[1731348050621,0.08815502,84581.0,84580.0,0.11994075]
[1731348051025,0.088157,84581.0,84580.0,0.11994075]
[1731348051232,0.088157,84582.0,84578.0,0.00236435]
[1731348051431,0.088157,84580.0,84579.0,0.17736262]
[1731348052046,0.14119742,84580.0,84579.0,0.17736262]
[1731348052238,0.14119742,84580.0,84577.0,0.03897916]
[1731348052484,0.14619742,84579.0,84577.0,0.03897916]
[1731348052673,0.22899742,84578.0,84577.0,0.0008484]
[1731348053669,0.005,84569.0,84544.0,0.0805]
[1731348053838,0.005,84564.0,84544.0,0.0805]
[1731348054045,0.14119742,84563.0,84559.0,0.03895019]
[1731348054423,0.19280972,84560.0,84559.0,0.0008488]
[1731348054620,0.33396189,84560.0,84559.0,0.0008488]
[1731348054734,0.22819742,84560.0,84559.0,0.0008488]
[1731348054934,0.22819742,84560.0,84548.0,0.15713734]
[1731348055156,0.005,84554.0,84548.0,0.15713734]
[1731348055373,0.13017093,84553.0,84548.0,0.15713734]
[1731348055579,0.14119742,84553.0,84549.0,0.00236522]
[1731348055768,0.13017093,84552.0,84549.0,0.00236522]
[1731348056008,0.005,84550.0,84548.0,0.0008489]
[1731348056201,0.24085959,84550.0,84548.0,0.0008489]
[1731348056442,0.13008738,84549.0,84548.0,0.0008489]
[1731348056640,0.14110925,84549.0,84548.0,0.0008489]
[1731348057619,0.13008738,84549.0,84548.0,0.0008489]
[1731348059014,0.09296085,84550.0,84548.0,0.0008489]
[1731348059225,0.005,84550.0,84548.0,0.0008489]
[1731348059456,0.005,84549.0,84548.0,0.0008489]
[1731348059670,0.02102187,84549.0,84548.0,0.0008489]
[1731348059880,0.14582187,84549.0,84548.0,0.0008489]
[1731348060078,0.14782187,84549.0,84548.0,0.0008489]
[1731348060326,0.18444425,84549.0,84548.0,0.0008489]
[1731348060562,0.18444425,84549.0,84533.0,0.17736262]
[1731348060563,0.012,84534.0,84533.0,0.17736262]
[1731348060681,0.0916,84534.0,84533.0,0.17736262]
[1731348060895,0.10262187,84534.0,84533.0,0.17736262]
[1731348061222,0.20598367,84534.0,84533.0,0.17736262]
[1731348061418,0.20598367,84534.0,84521.0,0.17736262]
[1731348061419,0.005,84533.0,84521.0,0.17736262]
[1731348061639,0.07022032,84522.0,84521.0,0.19885499]
[1731348061985,0.05267086,84523.0,84521.0,0.17736262]
[1731348062198,0.005,84511.0,84497.0,0.0002284]
[1731348062315,0.005,84511.0,84505.0,0.00236637]
[1731348062517,0.005,84511.0,84497.0,0.0002284]
[1731348062772,0.05262728,84517.0,84505.0,0.17736262]
[1731348062773,0.04008485,84510.0,84505.0,0.17736262]
[1731348062983,0.04008435,84510.0,84505.0,0.17736262]
[1731348063217,0.005,84504.0,84503.0,0.03957094]
[1731348063421,0.04008435,84504.0,84503.0,0.0008488]
[1731348063629,0.005,84504.0,84503.0,0.0008488]
[1731348063820,0.04004492,84504.0,84503.0,0.0008488]
[1731348064098,0.05262653,84508.0,84503.0,0.0008488]
[1731348064099,0.03504492,84505.0,84503.0,0.0008488]
[1731348064319,0.005,84507.0,84503.0,0.0008488]
[1731348064522,0.03004492,84509.0,84503.0,0.0008488]
[1731348064746,0.05262653,84512.0,84503.0,0.0008488]
[1731348064972,0.05262653,84508.0,84504.0,0.17736262]
[1731348065189,0.05262653,84508.0,84503.0,0.0008488]
[1731348065424,0.05248155,84506.0,84504.0,0.17736262]
[1731348066093,0.05248155,84506.0,84493.0,0.0008488]
[1731348066317,0.005,84507.0,84503.0,0.0008493]
[1731348067675,0.05748155,84505.0,84503.0,0.0008493]
[1731348067887,0.00295848,84506.0,84503.0,0.0008493]
[1731348067888,0.05748155,84504.0,84503.0,0.0008493]
[1731348068339,0.07516871,84504.0,84503.0,0.0008493]
[1731348068538,0.005,84500.0,84493.0,0.0008488]
[1731348068743,0.07488465,84500.0,84499.0,0.17736262]
[1731348068956,0.07488465,84500.0,84493.0,0.0008488]
[1731348068957,0.005,84500.0,84493.0,0.0008488]
[1731348069199,0.005,84494.0,84493.0,0.0008488]
[1731348069411,0.005,84494.0,84488.0,0.0008489]
[1731348069412,0.005,84489.0,84488.0,0.0008489]
[1731348070544,0.12494075,84489.0,84488.0,0.0008489]
[1731348070759,0.12789997,84489.0,84488.0,0.0008489]
[1731348070976,0.21511103,84489.0,84488.0,0.0008489]
[1731348071191,0.12789997,84489.0,84488.0,0.0008489]
[1731348071400,0.21511103,84489.0,84488.0,0.0008489]
[1731348071635,0.12789997,84489.0,84488.0,0.0008489]
[1731348071859,0.25139997,84489.0,84488.0,0.0008489]
[1731348072728,0.26014617,84489.0,84488.0,0.0008489]
[1731348072957,0.005,84484.0,84483.0,0.17736262]
[1731348073391,0.005,84484.0,84473.0,0.15236262]
[1731348073747,0.0087462,84488.0,84473.0,0.15236262]
[1731348073748,0.05218312,84488.0,84473.0,0.15236262]
[1731348073944,0.12101141,84487.0,84473.0,0.15236262]
[1731348074534,0.03476959,84486.0,84474.0,0.17736262]
[1731348074744,0.12101141,84487.0,84474.0,0.17736262]
[1731348074745,0.03476376,84487.0,84474.0,0.17736262]
[1731348075109,0.00107066,84486.0,84470.0,0.04737359]
[1731348075336,0.00107066,84488.0,84474.0,0.17702475]
[1731348075548,0.023752,84494.0,84470.0,0.04737359]
[1731348075808,0.023752,84494.0,84465.0,0.17736262]
[1731348075809,0.11994075,84493.0,84465.0,0.17736262]
[1731348076007,0.06959433,84489.0,84474.0,0.17736262]
[1731348076212,0.11994075,84488.0,84474.0,0.17736262]
[1731348077600,0.11994075,84488.0,84466.0,0.00236754]
[1731348077601,0.0795,84487.0,84475.0,0.17736262]
[1731348078001,0.11994075,84486.0,84476.0,0.17736262]
[1731348078185,0.11994075,84486.0,84465.0,0.17736262]
[1731348078450,0.11994075,84486.0,84475.0,0.17736262]
[1731348078874,0.11994075,84486.0,84465.0,0.17736262]
[1731348078875,0.11994075,84486.0,84473.0,0.0008493]
[1731348079088,0.11994075,84486.0,84465.0,0.17736262]
[1731348079089,0.11994075,84486.0,84474.0,0.17736262]
[1731348079267,0.11994075,84486.0,84465.0,0.17736262]
[1731348079417,0.12800447,84485.0,84475.0,0.17736262]
[1731348079640,0.11994075,84484.0,84475.0,0.17736262]
[1731348080253,0.0773,84487.0,84475.0,0.17736262]
[1731348080449,0.11994075,84486.0,84475.0,0.17736262]
[1731348080651,0.11994075,84486.0,84466.0,0.00236758]
[1731348080940,0.0462,84492.0,84483.0,0.17736262]
[1731348081163,0.0795,84495.0,84474.0,0.17702622]
[1731348081400,0.0795,84495.0,84475.0,0.00236726]
[1731348081726,0.0795,84495.0,84471.0,0.0002]
[1731348081727,0.11994075,84494.0,84476.0,0.17736262]
[1731348082152,0.11994075,84494.0,84471.0,0.0002]
[1731348082353,0.06381899,84493.0,84474.0,0.17736262]
[1731348082576,0.12939308,84491.0,84474.0,0.17736262]
[1731348082782,0.05199308,84489.0,84474.0,0.17736262]
[1731348082984,0.13385974,84490.0,84474.0,0.17736262]
[1731348082985,0.05199308,84484.0,84474.0,0.17736262]
[1731348083230,0.0803,84485.0,84474.0,0.17736262]
[1731348083231,0.18585282,84483.0,84474.0,0.17736262]
[1731348083425,0.18585282,84483.0,84471.0,0.0002]
[1731348083426,0.01391899,84482.0,84471.0,0.0002]
[1731348083657,0.18585282,84481.0,84474.0,0.17736262]
[1731348083851,0.01391899,84480.0,84471.0,0.0002]
[1731348084063,0.13385974,84479.0,84471.0,0.0002]
[1731348084233,0.01391899,84478.0,84471.0,0.0002]
[1731348084433,0.17945974,84477.0,84471.0,0.0002]
[1731348084634,0.01391899,84476.0,84471.0,0.0002]
[1731348084836,0.13385974,84475.0,84471.0,0.0002]
[1731348085043,0.01391899,84474.0,84471.0,0.0002]
[1731348085244,0.0456,84477.0,84471.0,0.0002]
[1731348085245,0.13385974,84473.0,84471.0,0.0002]
[1731348085519,0.0456,84477.0,84465.0,0.17736262]
[1731348085520,0.01391899,84472.0,84465.0,0.17736262]
[1731348085732,0.02265868,84471.0,84465.0,0.17736262]
[1731348085937,0.02265868,84470.0,84465.0,0.17736262]
[1731348086358,0.11994075,84476.0,84465.0,0.17736262]
[1731348086359,0.02265868,84469.0,84465.0,0.17736262]
[1731348086532,0.02265868,84468.0,84465.0,0.17736262]
[1731348086671,0.02265868,84467.0,84451.0,0.0052]
[1731348086888,0.02265868,84466.0,84451.0,0.0052]
[1731348087086,0.11994075,84476.0,84451.0,0.0052]
[1731348087087,0.02265868,84465.0,84451.0,0.0052]
[1731348087487,0.02265868,84464.0,84451.0,0.0002]
[1731348087895,0.02265868,84464.0,84451.0,0.17756262]
[1731348088386,0.22399943,84464.0,84451.0,0.0002]
[1731348088607,0.03464897,84462.0,84452.0,0.17736262]
[1731348088799,0.20415639,84463.0,84452.0,0.17736262]
[1731348088800,0.17891507,84461.0,84452.0,0.17736262]
[1731348089025,0.17891507,84461.0,84450.0,1.0]
[1731348089026,0.03464897,84459.0,84451.0,0.17736262]
[1731348089225,0.16501606,84458.0,84450.0,0.88341724]
[1731348089344,0.00873969,84457.0,84450.0,0.88341724]
[1731348089551,0.16503362,84456.0,84451.0,0.17736262]
[1731348089742,0.12869304,84456.0,84450.0,0.88341724]
[1731348089950,0.00875229,84455.0,84450.0,0.88341724]
[1731348090165,0.11994075,84454.0,84450.0,0.88341724]
[1731348090370,0.12869304,84454.0,84450.0,0.88426674]
[1731348090580,0.00875229,84453.0,84450.0,0.88426674]
[1731348090845,0.12869304,84452.0,84450.0,0.88426674]
[1731348091012,0.00875229,84451.0,84450.0,0.88426674]
[1731348091215,0.12869304,84451.0,84450.0,0.88426674]
[1731348092095,0.00875229,84451.0,84450.0,0.88426674]
[1731348092715,0.00875229,84451.0,84450.0,0.93271793]
[1731348092927,0.00875229,84451.0,84450.0,0.88426674]
[1731348093288,0.12869304,84451.0,84450.0,0.88426674]
[1731348094544,0.00875229,84451.0,84450.0,0.88426674]
[1731348096376,0.05609729,84451.0,84450.0,0.88426674]
[1731348096577,0.05609729,84451.0,84450.0,0.93133639]
[1731348097596,0.05609729,84451.0,84450.0,1.07927714]
[1731348097597,0.047345,84451.0,84450.0,1.07927714]
[1731348097814,0.17736262,84480.0,84466.0,0.005]
[1731348098056,0.17736262,84469.0,84458.0,0.023]
[1731348098278,0.047328,84477.0,84461.0,0.17736262]
[1731348098501,0.047328,84477.0,84462.0,0.14530826]
[1731348098954,0.047328,84477.0,84463.0,0.17736262]
[1731348099155,0.047328,84477.0,84464.0,0.15298284]
[1731348099351,0.047328,84477.0,84465.0,0.17736262]
[1731348099570,0.047328,84477.0,84466.0,0.12230825]
[1731348099571,0.03653567,84476.0,84466.0,0.12230825]
[1731348099736,0.03653567,84476.0,84468.0,0.0811]
[1731348099940,0.047328,84477.0,84469.0,0.00436747]
[1731348100258,0.03487458,84484.0,84469.0,0.00236747]
[1731348100478,0.03655913,84483.0,84474.0,0.17736262]
[1731348100802,0.03655913,84483.0,84471.0,0.023]
[1731348100803,0.03655913,84482.0,84475.0,0.16910797]
[1731348100967,0.001699,84487.0,84475.0,0.16910797]
[1731348100968,0.001699,84487.0,84476.0,0.023]
[1731348101136,0.001699,84487.0,84477.0,0.14221867]
[1731348101371,0.001699,84487.0,84478.0,0.023]
[1731348101610,0.001699,84487.0,84484.0,0.005]
[1731348101930,0.001699,84487.0,84485.0,0.00436702]
[1731348102104,0.001699,84487.0,84485.0,0.00236702]
[1731348102338,0.001699,84487.0,84486.0,0.11994075]
[1731348102557,0.001699,84487.0,84486.0,0.20174075]
[1731348102979,0.001699,84487.0,84486.0,0.25085153]
[1731348103149,0.000901,84487.0,84486.0,0.29965153]
[1731348103810,0.000901,84487.0,84486.0,0.34681943]
[1731348104980,0.000901,84487.0,84486.0,0.32370865]
[1731348105207,0.06996066,84499.0,84488.0,0.005]
[1731348105422,0.06996066,84497.0,84489.0,0.11994075]
[1731348105642,0.06996066,84494.0,84489.0,0.11994075]
[1731348105855,0.01095904,84497.0,84489.0,0.11994075]
[1731348105856,0.12923417,84493.0,84489.0,0.11994075]
[1731348106095,0.06996066,84490.0,84486.0,0.0471679]
[1731348106303,0.06996066,84488.0,84469.0,0.005]
[1731348106508,0.06996066,84488.0,84476.0,0.005]
[1731348106509,0.06996066,84486.0,84476.0,0.005]
[1731348106717,0.06996066,84485.0,84477.0,0.11994075]
[1731348106911,0.01095943,84484.0,84477.0,0.11994075]
[1731348107144,0.21015426,84483.0,84477.0,0.11994075]
[1731348107355,0.06996066,84481.0,84477.0,0.11994075]
[1731348107554,0.06996066,84478.0,84469.0,0.04675698]
[1731348107918,0.104941,84494.0,84465.0,0.17736262]
[1731348107919,0.06996066,84472.0,84465.0,0.17736262]
[1731348108141,0.22418233,84471.0,84465.0,0.17736262]
[1731348108367,0.06996066,84466.0,84465.0,0.17736262]
[1731348108589,0.06996066,84466.0,84463.0,0.04817601]
[1731348108590,0.01095943,84466.0,84463.0,0.04817601]
[1731348108810,0.12942674,84465.0,84463.0,0.04817601]
[1731348109009,0.07012327,84467.0,84462.0,0.005]
[1731348109230,0.12939515,84466.0,84462.0,0.005]
[1731348109452,0.07012327,84467.0,84462.0,0.005]
[1731348109453,0.12939515,84465.0,84462.0,0.005]
[1731348109653,0.19489771,84486.0,84465.0,0.023]
[1731348109654,0.07012327,84468.0,84465.0,0.023]
[1731348109872,0.1293789,84467.0,84466.0,0.14294075]
[1731348110073,0.00875758,84467.0,84466.0,0.14294075]
[1731348110294,0.00875758,84467.0,84461.0,0.0788]
[1731348110519,0.00875758,84467.0,84452.0,0.17736262]
[1731348110520,0.07011204,84463.0,84453.0,0.023]
[1731348110737,0.20827582,84462.0,84455.0,0.023]
[1731348110951,0.13817189,84461.0,84457.0,0.005]
[1731348111161,0.00875758,84460.0,84458.0,0.11994075]
[1731348111367,0.00875758,84459.0,84458.0,0.11994075]
[1731348112640,0.00875758,84462.0,84458.0,0.11994075]
[1731348112841,0.00875758,84461.0,84458.0,0.11994075]
[1731348113095,0.00875758,84460.0,84458.0,0.11994075]
[1731348113601,0.00875758,84460.0,84452.0,0.17736262]
[1731348113602,0.00875758,84459.0,84452.0,0.17736262]
[1731348113810,0.07020525,84453.0,84452.0,0.17736262]
[1731348114015,0.07896367,84453.0,84452.0,0.17736262]
[1731348114241,0.00875758,84453.0,84450.0,0.93123881]
[1731348114459,0.06141235,84452.0,84450.0,0.93123881]
[1731348114680,0.05265477,84453.0,84450.0,0.93123881]
[1731348114894,0.00875758,84452.0,84450.0,0.93123881]
[1731348115113,0.06141235,84452.0,84450.0,0.93123881]
[1731348115328,0.05265477,84451.0,84450.0,0.93123881]
[1731348115764,0.06142169,84452.0,84450.0,0.93123881]
[1731348116043,0.00875758,84451.0,84450.0,0.93123881]
[1731348116259,0.13835477,84451.0,84450.0,0.93123881]
[1731348116674,0.13835477,84451.0,84450.0,0.88426674]
[1731348116895,0.12959719,84451.0,84450.0,0.88426674]
[1731348117363,0.13836013,84451.0,84450.0,0.88426674]
[1731348117559,0.22612447,84451.0,84450.0,0.88426674]
[1731348117789,0.13833399,84451.0,84450.0,0.87426674]
[1731348118454,0.12957105,84451.0,84450.0,0.87426674]
[1731348118665,0.13833399,84451.0,84450.0,0.87426674]
[1731348118869,0.05633398,84451.0,84450.0,0.87426674]
[1731348121130,0.13370369,84451.0,84450.0,0.18040778]
[1731348122409,0.21527126,84451.0,84450.0,0.18040778]
[1731348122636,0.26047126,84451.0,84450.0,0.0199232]
[1731348123050,0.40213198,84451.0,84450.0,0.0199232]
[1731348123255,0.29455019,84451.0,84450.0,0.0199232]
[1731348123484,0.25810369,84451.0,84450.0,0.0199232]
[1731348123692,0.26047126,84451.0,84450.0,0.0199232]
[1731348123901,0.26047126,84451.0,84437.0,0.17736262]
[1731348123902,0.005,84438.0,84437.0,0.17736262]
[1731348124113,0.12730832,84438.0,84437.0,0.17736262]
[1731348124321,0.005,84434.0,84431.0,0.0002]
[1731348124528,0.07001408,84432.0,84431.0,0.0002]
[1731348124746,0.12870369,84432.0,84431.0,0.0002]
[1731348124949,0.19871777,84432.0,84431.0,0.0002]
[1731348125397,0.12870369,84432.0,84431.0,0.0002]
[1731348125550,0.20657126,84432.0,84431.0,0.0002]
[1731348126371,0.005,84426.0,84418.0,0.0008497]
[1731348126694,0.05246768,84424.0,84420.0,0.17736262]
[1731348126913,0.00236757,84423.0,84420.0,0.17736262]
[1731348127052,0.03496727,84421.0,84418.0,0.0008497]
[1731348127249,0.00236757,84420.0,84418.0,0.0008497]
[1731348127666,0.00236757,84424.0,84418.0,0.0008497]
[1731348127860,0.03496038,84427.0,84418.0,0.0008497]
[1731348128118,0.06992076,84437.0,84419.0,0.17736262]
[1731348128284,0.24220021,84472.0,84418.0,0.0008497]
[1731348128285,0.11994075,84436.0,84418.0,0.0008497]
[1731348128677,0.11994075,84436.0,84419.0,0.17736262]
[1731348128919,0.11994075,84436.0,84418.0,0.0008497]
[1731348129068,0.11994075,84436.0,84419.0,0.17736262]
[1731348129679,0.11994075,84436.0,84418.0,0.0008497]
[1731348129875,0.0479,84435.0,84419.0,0.17736262]
[1731348130113,0.11994075,84434.0,84419.0,0.17736262]
[1731348130320,0.1,84433.0,84419.0,0.17736262]
[1731348130525,0.11994075,84432.0,84419.0,0.17736262]
[1731348130696,0.11994075,84432.0,84418.0,0.0008497]
[1731348130912,0.0613,84429.0,84419.0,0.17736262]
[1731348131154,0.11994075,84428.0,84419.0,0.17736262]
[1731348131350,0.11994075,84428.0,84418.0,0.0008497]
[1731348132884,0.1,84427.0,84418.0,0.0008497]
[1731348133128,0.1,84425.0,84418.0,0.0008497]
[1731348133351,0.1,84425.0,84405.0,0.17736262]
[1731348133352,0.11994075,84424.0,84405.0,0.17736262]
[1731348133579,0.1,84421.0,84414.0,0.17736262]
[1731348133798,0.03794074,84420.0,84414.0,0.17736262]
[1731348133999,0.1,84419.0,84405.0,0.17736262]
[1731348134204,0.24872287,84418.0,84405.0,0.17736262]
[1731348134403,0.1,84416.0,84405.0,0.17736262]
[1731348134608,0.1,84414.0,84405.0,0.17736262]
[1731348134834,0.11994075,84413.0,84405.0,0.17736262]
[1731348135074,0.11994075,84413.0,84403.0,0.0008497]
[1731348135296,0.1,84414.0,84403.0,0.0008497]
[1731348135297,0.10048677,84411.0,84403.0,0.0008497]
[1731348135524,0.10048677,84411.0,84405.0,0.17736262]
[1731348135525,0.1,84409.0,84405.0,0.17736262]
[1731348135739,0.1,84407.0,84403.0,0.0008497]
[1731348135937,0.1,84405.0,84403.0,0.0008497]
[1731348136160,0.11994075,84404.0,84403.0,0.0008497]
[1731348136384,0.21994075,84404.0,84403.0,0.0008497]
[1731348137929,0.26554075,84404.0,84403.0,0.0008497]
[1731348138513,0.1,84403.0,84381.0,8e-05]
[1731348138725,0.03479551,84397.0,84396.0,0.17736262]
[1731348139003,0.03479551,84397.0,84381.0,8e-05]
[1731348139004,0.1,84396.0,84381.0,8e-05]
[1731348139236,0.21994075,84396.0,84395.0,0.495]
[1731348140091,0.2286638,84396.0,84395.0,0.495]
[1731348140252,0.00872305,84396.0,84395.0,0.495]
[1731348140564,0.00872305,84396.0,84395.0,0.4958502]
[1731348141388,0.00048677,84411.0,84395.0,0.4958502]
[1731348141389,0.00872305,84410.0,84395.0,0.4958502]
[1731348141607,0.00048677,84411.0,84395.0,0.4958502]
[1731348141608,0.17736262,84405.0,84395.0,0.4958502]
[1731348141812,0.00872305,84404.0,84395.0,0.4958502]
[1731348141985,0.00872305,84403.0,84395.0,0.4958502]
[1731348142182,0.00872305,84402.0,84395.0,0.4958502]
[1731348142387,0.00872305,84401.0,84395.0,0.4958502]
[1731348142606,0.00872305,84400.0,84395.0,0.4958502]
[1731348142951,0.00872305,84399.0,84395.0,0.4958502]
[1731348143195,0.00873811,84398.0,84395.0,0.4958502]
[1731348143406,0.00873811,84397.0,84395.0,0.4958502]
[1731348143850,0.00873811,84396.0,84395.0,0.4958502]
[1731348144060,0.17736262,84406.0,84395.0,0.4958502]
[1731348144259,0.00873811,84405.0,84396.0,0.0824]
[1731348144435,0.00873811,84404.0,84397.0,0.046]
[1731348144802,0.00873811,84404.0,84395.0,0.4958502]
[1731348144803,0.17736262,84402.0,84395.0,0.4958502]
[1731348144980,0.00873811,84401.0,84395.0,0.4958502]
[1731348145129,0.00873811,84400.0,84395.0,0.4958502]
[1731348145338,0.11994075,84401.0,84395.0,0.4958502]
[1731348145339,0.26493282,84396.0,84395.0,0.4958502]
[1731348145561,0.27367093,84396.0,84395.0,0.4958502]
[1731348146133,0.32105293,84396.0,84395.0,0.4958502]
[1731348146252,0.35743977,84396.0,84395.0,0.4958502]
[1731348146453,0.34870166,84396.0,84395.0,0.4958502]
[1731348146719,0.35745702,84396.0,84395.0,0.4958502]
[1731348147601,0.31007502,84396.0,84395.0,0.4958502]
[1731348148884,0.22807501,84396.0,84395.0,0.4958502]
[1731348153503,0.34801576,84396.0,84395.0,0.4958502]
[1731348154428,0.47673768,84396.0,84395.0,0.4958502]
[1731348154551,0.34801576,84396.0,84395.0,0.4958502]
[1731348154754,0.40032063,84396.0,84395.0,0.4958502]
[1731348155073,0.34801576,84396.0,84395.0,0.4958502]
[1731348155271,0.38288509,84396.0,84395.0,0.4958502]
[1731348155481,0.34801576,84396.0,84395.0,0.4958502]
[1731348155872,0.40031846,84396.0,84395.0,0.4958502]
[1731348156291,0.47677383,84396.0,84395.0,0.4958502]
[1731348156479,0.47677383,84396.0,84395.0,0.4936502]
[1731348156695,0.47677362,84396.0,84395.0,0.4936502]
[1731348157679,0.56394839,84396.0,84395.0,0.4936502]
[1731348157895,0.47677362,84396.0,84395.0,0.4936502]
[1731348158308,0.47677362,84396.0,84381.0,0.17744262]
[1731348158309,0.00204,84395.0,84381.0,8e-05]
[1731348158512,0.06979781,84385.0,84382.0,0.17736262]
[1731348158726,0.16508295,84384.0,84382.0,0.17736262]
[1731348158944,0.17390006,84383.0,84381.0,8e-05]
[1731348159144,0.11994075,84384.0,84381.0,8e-05]
[1731348159145,0.31007502,84382.0,84381.0,8e-05]
[1731348159568,0.32240361,84382.0,84381.0,8e-05]
[1731348159785,0.0451422,84382.0,84381.0,8e-05]
[1731348159998,0.05747079,84382.0,84381.0,8e-05]
[1731348160638,0.05750655,84382.0,84381.0,8e-05]
[1731348161492,0.09245471,84382.0,84381.0,8e-05]
[1731348161786,0.05750655,84382.0,84381.0,8e-05]
[1731348161932,0.32243937,84382.0,84381.0,8e-05]
[1731348162597,0.45151095,84382.0,84381.0,8e-05]
[1731348162819,0.52143827,84382.0,84381.0,8e-05]
[1731348163023,0.45151095,84382.0,84381.0,8e-05]
[1731348163600,0.5714517,84382.0,84373.0,0.0008485]
[1731348163823,0.18293281,84374.0,84373.0,0.0008485]
[1731348164052,0.46833198,84374.0,84373.0,0.0008485]
[1731348164492,0.4771231,84374.0,84373.0,0.0008485]
[1731348165135,0.47722571,84374.0,84373.0,0.0008485]
[1731348165354,0.47722571,84374.0,84361.0,0.0180178]
[1731348165588,0.26493282,84365.0,84361.0,0.0180178]
[1731348165991,0.08750106,84362.0,84361.0,0.0180178]
[1731348166201,0.2942929,84362.0,84361.0,0.0180178]
[1731348167777,0.381774,84362.0,84361.0,0.0180178]
[1731348167976,0.26185021,84362.0,84361.0,0.0180178]
[1731348168200,0.17434477,84362.0,84361.0,0.0180178]
[1731348168833,0.26186127,84362.0,84361.0,0.0180178]
[1731348169243,0.17434477,84362.0,84361.0,0.0180178]
[1731348169607,0.04517058,84362.0,84361.0,0.0180178]
[1731348169806,0.13270571,84362.0,84361.0,0.0180178]